[Event "FIDE WYCC Girls U18 2023"]
[Site "Montesilvano"]
[Date "2023.11.18"]
[Round "6.15"]
[White "Sovetbekova, Nurai"]
[Black "Dakic, Marta"]
[Result "1/2-1/2"]
[ECO "E37"]
[WhiteElo "1801"]
[BlackElo "2013"]
[Annotator "NA"]
[PlyCount "207"]
[EventDate "2023.11.13"]
[EventType "swiss"]
[EventCountry "ITA"]
[SourceTitle "playchess.com"]
[Source "ChessBase"]
[SourceQuality "1"]
[TimeControl "40/5400+30:1800+30"]

1. d4 {[%emt 0:00:04]} Nf6 {[%emt 0:00:15]} 2. c4 {[%emt 0:00:05]} e6 {[%emt 0:00:08]} 3. Nc3 {[%emt 0:00:07]} Bb4 {[%emt 0:00:28]} 4. Qc2 {[%emt 0:00:06]} d5 {[%emt 0:00:42]} 5. a3 {[%emt 0:00:19]} Bxc3+ {[%emt 0:00:15]} 6. Qxc3 {[%emt 0:00:04]} Ne4 {[%emt 0:00:58]} 7. Qc2 {[%emt 0:04:14]} c5 {[%emt 0:01:57]} 8. dxc5 {[%emt 0:04:45]} Nc6 {[%emt 0:00:09]} 9. Nf3 {[%emt 0:12:30]} Qa5+ {[%emt 0:13:11]} 10. Bd2 {[%emt 0:00:42]} Qxc5 {[%emt 0:02:46]} 11. e3 {[%emt 0:00:32]} Nxd2 {[%emt 0:01:20]} 12. Nxd2 {[%emt 0:11:37]} d4 {[%emt 0:17:47]} 13. b4 {[%emt 0:16:19]} Qe5 {[%emt 0:00:11]} 14. Nf3 {[%emt 0:04:27]} Qf6 {[%emt 0:00:23]} 15. exd4 {[%emt 0:01:56]} Nxd4 {[%emt 0:03:31]} 16. Nxd4 {[%emt 0:00:46]} Qxd4 {[%emt 0:00:06]} 17. Rd1 {[%emt 0:00:09]} Qe5+ {[%emt 0:01:39]} 18. Be2 {[%emt 0:01:16]} Bd7 {[%emt 0:02:35]} 19. O-O {[%emt 0:02:11]} Bc6 {[%emt 0:04:52]} 20. Bd3 {[%emt 0:09:02]} Qf4 {[%emt 0:04:40]} 21. Rfe1 {[%emt 0:08:31]} Rc8 {[%emt 0:05:36]} 22. Be4 {[%emt 0:04:01]} g6 {[%emt 0:08:01]} 23. Bxc6+ {[%emt 0:04:26]} Rxc6 {[%emt 0:00:10]} 24. Re4 {[%emt 0:00:46]} Qc7 {[%emt 0:01:43]} 25. Red4 {[%emt 0:01:00]} O-O {[%emt 0:00:17]} 26. Qe4 {[%emt 0:01:28]} e5 {[%emt 0:06:10]} 27. Rd7 Rxc4 {[%emt 0:00:09]} 28. Qxb7 {[%emt 0:05:08]} Qxb7 {[%emt 0:04:43]} 29. Rxb7 {[%emt 0:00:02]} a5 {[%emt 0:00:09]} 30. g3 {[%emt 0:02:29]} axb4 {[%emt 0:03:01]} 31. axb4 {[%emt 0:00:19]} h5 {[%emt 0:01:48]} 32. h4 {[%emt 0:00:24]} e4 {[%emt 0:08:07]} 33. b5 {[%emt 0:01:56]} Rb4 {[%emt 0:00:28]} 34. b6 {[%emt 0:01:19]} Re8 {[%emt 0:01:17]} 35. Rdd7 {[%emt 0:01:36]} Re6 {[%emt 0:03:26]} 36. Rxf7 {[%emt 0:00:52]} Rbxb6 {[%emt 0:00:19]} 37. Rg7+ {[%emt 0:01:11]} Kf8 {[%emt 0:00:10]} 38. Rbf7+ {[%emt 0:00:22]} Ke8 {[%emt 0:00:20]} 39. Ra7 {[%emt 0:00:06]} Kf8 {[%emt 0:00:27]} 40. Rh7 {[%emt 0:00:00]} Kg8 {[%emt 0:00:00]} 41. Rhd7 {[%emt 0:11:59]} Re8 {[%emt 0:04:09]} 42. Kf1 {[%emt 0:05:37]} Rbe6 {[%emt 0:07:51]} 43. Kg2 {[%emt 0:02:58]} Rf6 {[%emt 0:01:32]} 44. Rg7+ {[%emt 0:01:29]} Kf8 {[%emt 0:00:39]} 45. Rh7 {[%emt 0:00:12]} Kg8 {[%emt 0:00:12]} 46. Rhe7 {[%emt 0:02:37]} Re6 {[%emt 0:00:36]} 47. Rxe8+ {[%emt 0:00:18]} Rxe8 {[%emt 0:00:05]} 48. Ra3 {[%emt 0:00:20]} Kf7 {[%emt 0:00:07]} 49. Kf1 {[%emt 0:00:20]} Rb8 {[%emt 0:01:05]} 50. Ra4 {[%emt 0:02:00]} Re8 {[%emt 0:00:35]} 51. Ke2 {[%emt 0:00:06]} Kf6 {[%emt 0:00:05]} 52. Ke3 {[%emt 0:00:24]} Kf5 {[%emt 0:00:04]} 53. Rc4 {[%emt 0:05:10]} Re7 {[%emt 0:03:00]} 54. Rc8 {[%emt 0:00:58]} Re6 {[%emt 0:00:31]} 55. Rf8+ {[%emt 0:02:10]} Ke5 {[%emt 0:00:08]} 56. Ra8 {[%emt 0:01:48]} Kf5 {[%emt 0:00:32]} 57. Rd8 {[%emt 0:00:35]} Rf6 {[%emt 0:06:07]} 58. Rd4 {[%emt 0:01:31]} Re6 {[%emt 0:02:00]} 59. Rd5+ {[%emt 0:00:07]} Kf6 {[%emt 0:00:05]} 60. Kf4 {[%emt 0:00:17]} Kg7 {[%emt 0:04:03]} 61. Rd7+ {[%emt 0:00:56]} Kf8 {[%emt 0:00:29]} 62. Rd2 {[%emt 0:00:51]} Kf7 {[%emt 0:01:37]} 63. Re2 {[%emt 0:00:53]} Rf6+ {[%emt 0:00:10]} 64. Ke3 {[%emt 0:00:32]} Re6 {[%emt 0:00:19]} 65. Kd4 {[%emt 0:00:40]} Rd6+ {[%emt 0:00:12]} 66. Kc5 {[%emt 0:00:30]} Rf6 {[%emt 0:00:57]} 67. Kd5 {[%emt 0:00:27]} Rf5+ {[%emt 0:03:02]} 68. Kxe4 {[%emt 0:00:18]} Kf6 {[%emt 0:00:06]} 69. Ra2 {[%emt 0:00:23]} Re5+ {[%emt 0:00:07]} 70. Kf3 {[%emt 0:00:12]} Rf5+ {[%emt 0:00:05]} 71. Kg2 {[%emt 0:00:04]} Rb5 {[%emt 0:00:16]} 72. Ra3 {[%emt 0:00:37]} Rb2 {[%emt 0:00:28]} 73. Rf3+ {[%emt 0:00:07]} Kg7 {[%emt 0:00:06]} 74. Rf4 {[%emt 0:00:13]} Ra2 {[%emt 0:00:54]} 75. Kh3 {[%emt 0:01:02]} Rb2 {[%emt 0:00:11]} 76. g4 {[%emt 0:00:20]} Rb3+ {[%emt 0:00:51]} 77. Kg2 {[%emt 0:00:03]} hxg4 {[%emt 0:00:05]} 78. Rxg4 {[%emt 0:00:02]} Kf6 {[%emt 0:00:42]} 79. f3 {[%emt 0:00:05]} Rb2+ {[%emt 0:00:28]} 80. Kg3 {[%emt 0:00:02]} Rb3 {[%emt 0:00:07]} 81. Rf4+ {[%emt 0:00:29]} Kg7 {[%emt 0:00:05]} 82. Ra4 {[%emt 0:00:10]} Rb1 {[%emt 0:01:11]} 83. Rg4 {[%emt 0:01:32]} Kf6 {[%emt 0:00:04]} 84. Rc4 {[%emt 0:01:00]} Rg1+ {[%emt 0:00:41]} 85. Kf4 {[%emt 0:00:10]} Rh1 {[%emt 0:00:12]} 86. Ke3 {[%emt 0:00:17]} Re1+ {[%emt 0:00:15]} 87. Kf2 {[%emt 0:00:06]} Ra1 {[%emt 0:00:04]} 88. Rf4+ {[%emt 0:00:05]} Kg7 {[%emt 0:00:04]} 89. Rb4 {[%emt 0:00:44]} Kf6 {[%emt 0:00:09]} 90. Ke3 {[%emt 0:00:14]} Re1+ {[%emt 0:00:07]} 91. Kf4 {[%emt 0:00:31]} Rh1 {[%emt 0:00:07]} 92. Kg3 {[%emt 0:01:05]} Rg1+ {[%emt 0:00:05]} 93. Kf2 {[%emt 0:00:03]} Ra1 {[%emt 0:00:06]} 94. Rg4 {[%emt 0:00:11]} Ra2+ {[%emt 0:00:50]} 95. Kg3 {[%emt 0:00:30]} Ra3 {[%emt 0:00:09]} 96. Rd4 {[%emt 0:01:31]} Ra1 {[%emt 0:00:07]} 97. Rd6+ {[%emt 0:00:50]} Kf5 {[%emt 0:00:14]} 98. Rd5+ {[%emt 0:00:11]} Kf6 {[%emt 0:00:06]} 99. Rd2 {[%emt 0:00:11]} Rg1+ {[%emt 0:00:17]} 100. Rg2 {[%emt 0:00:25]} Ra1 {[%emt 0:00:17]} 101. Kg4 {[%emt 0:00:27]} Ra4+ {[%emt 0:00:43]} 102. f4 {[%emt 0:00:10]} Ra1 {[%emt 0:00:06]} 103. Rg3 {[%emt 0:00:56]} Rf1 {[%emt 0:00:54]} 104. Rg2 {[%emt 0:01:13]} 1/2-1/2

[Event "FIDE WYCC Girls U18 2023"]
[Site "Montesilvano"]
[Date "2023.11.18"]
[Round "6.16"]
[White "Sasvatha A"]
[Black "Sosovickova, Jana"]
[Result "1/2-1/2"]
[ECO "D35"]
[WhiteElo "1568"]
[BlackElo "2013"]
[Annotator "NA"]
[PlyCount "166"]
[EventDate "2023.11.13"]
[EventType "swiss"]
[EventCountry "ITA"]
[SourceTitle "playchess.com"]
[Source "ChessBase"]
[SourceQuality "1"]
[TimeControl "40/5400+30:1800+30"]

1. d4 {[%emt 0:02:29]} Nf6 {[%emt 0:00:08]} 2. c4 {[%emt 0:00:15]} d5 {[%emt 0:00:27]} 3. Nc3 {[%emt 0:00:30]} e6 {[%emt 0:00:43]} 4. cxd5 {[%emt 0:00:22]} exd5 {[%emt 0:00:27]} 5. Bg5 {[%emt 0:00:11]} Be7 {[%emt 0:00:26]} 6. e3 {[%emt 0:00:06]} c6 {[%emt 0:01:15]} 7. Bd3 {[%emt 0:00:38]} Nbd7 {[%emt 0:00:52]} 8. Nge2 {[%emt 0:00:10]} O-O {[%emt 0:04:44]} 9. f3 {[%emt 0:00:15]} Nh5 {[%emt 0:17:15]} 10. Bxe7 {[%emt 0:02:14]} Qxe7 {[%emt 0:00:21]} 11. Qd2 {[%emt 0:00:19]} Re8 {[%emt 0:04:14]} 12. e4 {[%emt 0:01:15]} dxe4 {[%emt 0:04:00]} 13. fxe4 {[%emt 0:00:25]} Nf8 {[%emt 0:04:48]} 14. O-O-O {[%emt 0:13:09]} a5 {[%emt 0:18:04]} 15. h3 {[%emt 0:01:00]} Nf6 {[%emt 0:06:37]} 16. Rdf1 {[%emt 0:04:19]} Be6 {[%emt 0:04:41]} 17. Nf4 {[%emt 0:04:06]} Red8 {[%emt 0:04:21]} 18. d5 {[%emt 0:14:24]} Bd7 {[%emt 0:04:20]} 19. Re1 {[%emt 0:01:53]} Be8 {[%emt 0:01:34]} 20. Rhf1 {[%emt 0:09:52]} N6d7 {[%emt 0:04:03]} 21. Nh5 {[%emt 0:18:02]} Ne5 {[%emt 0:02:07]} 22. Ng3 {[%emt 0:00:48]} Bd7 {[%emt 0:04:03]} 23. Kb1 {[%emt 0:01:38]} a4 {[%emt 0:02:48]} 24. Nce2 {[%emt 0:06:43]} c5 {[%emt 0:02:35]} 25. Bc2 {[%emt 0:01:32]} Ra6 {[%emt 0:02:06]} 26. Qc3 {[%emt 0:01:42]} b5 {[%emt 0:00:52]} 27. Nf5 {[%emt 0:01:02]} Bxf5 {[%emt 0:00:12]} 28. Rxf5 {[%emt 0:00:51]} f6 {[%emt 0:00:47]} 29. Ref1 {[%emt 0:04:20]} b4 {[%emt 0:00:36]} 30. Qg3 {[%emt 0:00:26]} Rda8 {[%emt 0:03:22]} 31. Bd1 {[%emt 0:02:16]} Nc4 {[%emt 0:00:18]} 32. Qd3 Qxe4 {[%emt 0:00:03]} 33. Qxe4 {[%emt 0:02:38]} Nd2+ {[%emt 0:00:01]} 34. Kc1 {[%emt 0:00:33]} Nxe4 35. R5f4 {[%emt 0:01:18]} Nd6 {[%emt 0:00:47]} 36. Rg4 {[%emt 0:00:49]} Nf7 {[%emt 0:01:15]} 37. Nf4 {[%emt 0:00:18]} Ne5 {[%emt 0:01:42]} 38. Rg3 {[%emt 0:00:16]} Rd6 {[%emt 0:01:04]} 39. Bg4 {[%emt 0:00:56]} Nxg4 {[%emt 0:00:33]} 40. Rxg4 {[%emt 0:00:00]} Re8 {[%emt 0:00:00]} 41. Kc2 {[%emt 0:01:54]} Re5 {[%emt 0:03:27]} 42. a3 {[%emt 0:01:23]} Re4 {[%emt 0:18:30]} 43. axb4 {[%emt 0:01:05]} Rxb4 {[%emt 0:01:54]} 44. Rf2 {[%emt 0:04:05]} Rdb6 {[%emt 0:04:31]} 45. Kc1 {[%emt 0:02:28]} Rc4+ {[%emt 0:01:46]} 46. Rc2 {[%emt 0:00:54]} Rbb4 {[%emt 0:03:58]} 47. Nd3 {[%emt 0:02:06]} Rxg4 {[%emt 0:00:09]} 48. hxg4 {[%emt 0:00:11]} Rd4 {[%emt 0:00:23]} 49. Nxc5 {[%emt 0:01:29]} Rxd5 {[%emt 0:00:06]} 50. Rc4 {[%emt 0:00:36]} Ng6 {[%emt 0:00:37]} 51. Nxa4 {[%emt 0:00:56]} Ne5 {[%emt 0:00:08]} 52. Re4 {[%emt 0:00:46]} Kf7 {[%emt 0:00:54]} 53. Kc2 {[%emt 0:00:34]} Kg6 {[%emt 0:00:03]} 54. Nc3 {[%emt 0:00:18]} Rc5 {[%emt 0:01:12]} 55. b4 {[%emt 0:00:39]} Rc8 {[%emt 0:00:30]} 56. b5 {[%emt 0:00:20]} Kg5 {[%emt 0:00:32]} 57. Kb3 {[%emt 0:00:17]} Nxg4 {[%emt 0:00:16]} 58. Re7 {[%emt 0:00:08]} Kg6 {[%emt 0:00:11]} 59. b6 {[%emt 0:00:12]} Ne5 {[%emt 0:00:18]} 60. Rc7 {[%emt 0:01:18]} Rb8 {[%emt 0:00:11]} 61. b7 {[%emt 0:00:11]} Nc6 {[%emt 0:00:17]} 62. Rxc6 {[%emt 0:01:29]} Rxb7+ {[%emt 0:00:04]} 63. Kc2 {[%emt 0:00:06]} Rd7 {[%emt 0:00:09]} 64. Rc5 {[%emt 0:00:18]} Rd4 {[%emt 0:00:26]} 65. Rd5 {[%emt 0:00:31]} Rxd5 {[%emt 0:00:43]} 66. Nxd5 {[%emt 0:00:05]} Kg5 {[%emt 0:00:31]} 67. Kd2 {[%emt 0:00:13]} Kg4 {[%emt 0:00:45]} 68. Ke2 {[%emt 0:00:06]} Kg3 {[%emt 0:00:59]} 69. Kf1 {[%emt 0:00:05]} f5 {[%emt 0:00:26]} 70. Ne7 {[%emt 0:02:34]} g6 {[%emt 0:00:11]} 71. Ng8 {[%emt 0:00:18]} g5 {[%emt 0:00:58]} 72. Nh6 {[%emt 0:00:18]} f4 {[%emt 0:00:26]} 73. Kg1 {[%emt 0:00:12]} f3 {[%emt 0:00:53]} 74. gxf3 {[%emt 0:00:06]} Kxf3 {[%emt 0:00:03]} 75. Nf7 {[%emt 0:00:07]} Kf4 {[%emt 0:00:43]} 76. Nxg5 {[%emt 0:00:23]} Kxg5 {[%emt 0:00:03]} 77. Kh2 {[%emt 0:00:09]} Kg4 {[%emt 0:00:09]} 78. Kg2 {[%emt 0:00:06]} h5 {[%emt 0:00:07]} 79. Kh2 {[%emt 0:00:04]} h4 {[%emt 0:00:11]} 80. Kg2 {[%emt 0:00:03]} h3+ {[%emt 0:00:08]} 81. Kh2 {[%emt 0:00:04]} Kh4 {[%emt 0:00:03]} 82. Kg1 {[%emt 0:00:08]} Kg3 {[%emt 0:00:02]} 83. Kh1 {[%emt 0:00:06]} h2 {[%emt 0:00:09]} 1/2-1/2

[Event "FIDE WYCC Girls U18 2023"]
[Site "Montesilvano"]
[Date "2023.11.18"]
[Round "6.17"]
[White "Latifah, Darmaki"]
[Black "Matute Escobar, Roxanny"]
[Result "*"]
[WhiteElo "1367"]
[BlackElo "1995"]
[Annotator "NA"]
[PlyCount "78"]
[EventDate "2023.11.13"]
[EventType "swiss"]
[EventCountry "ITA"]
[SourceTitle "playchess.com"]
[Source "ChessBase"]
[SourceQuality "1"]
[TimeControl "40/5400+30:1800+30"]

1. e4 {[%emt 0:00:09]} c5 {[%emt 0:00:06]} 2. Nc3 {[%emt 0:00:10]} Nc6 {[%emt 0:00:04]} 3. f4 {[%emt 0:00:10]} g6 {[%emt 0:01:12]} 4. Bc4 {[%emt 0:00:24]} Bg7 {[%emt 0:00:09]} 5. Nf3 {[%emt 0:00:08]} e6 {[%emt 0:00:20]} 6. O-O {[%emt 0:00:09]} Nge7 {[%emt 0:00:05]} 7. Qe1 {[%emt 0:00:08]} O-O {[%emt 0:00:12]} 8. d3 {[%emt 0:00:08]} d5 {[%emt 0:00:20]} 9. Bb3 {[%emt 0:00:11]} b6 {[%emt 0:05:41]} 10. f5 {[%emt 0:02:06]} c4 {[%emt 0:16:06]} 11. Qh4 {[%emt 0:42:35]} exf5 {[%emt 0:03:53]} 12. exd5 {[%emt 0:22:03]} cxb3 {[%emt 0:04:28]} 13. dxc6 {[%emt 0:00:45]} Nxc6 {[%emt 0:05:04]} 14. Qxd8 {[%emt 0:08:21]} Rxd8 {[%emt 0:00:07]} 15. axb3 {[%emt 0:00:05]} Nb4 {[%emt 0:01:02]} 16. Rf2 {[%emt 0:04:09]} Bb7 {[%emt 0:00:41]} 17. Be3 {[%emt 0:06:08]} Bxf3 {[%emt 0:00:28]} 18. gxf3 {[%emt 0:00:27]} f4 {[%emt 0:00:07]} 19. Bxf4 {[%emt 0:05:34]} Bd4 {[%emt 0:00:06]} 20. Rc1 {[%emt 0:00:32]} Rac8 {[%emt 0:01:01]} 21. Kf1 {[%emt 0:01:20]} Bxf2 {[%emt 0:00:25]} 22. Kxf2 {[%emt 0:00:19]} f6 {[%emt 0:04:21]} 23. Be3 {[%emt 0:02:25]} Kf7 {[%emt 0:01:27]} 24. d4 {[%emt 0:00:17]} g5 {[%emt 0:03:00]} 25. Ke2 {[%emt 0:02:10]} Kg6 {[%emt 0:02:30]} 26. Kd2 {[%emt 0:00:17]} f5 {[%emt 0:00:29]} 27. Ne2 {[%emt 0:01:28]} f4 {[%emt 0:01:07]} 28. Bf2 {[%emt 0:00:14]} Re8 {[%emt 0:08:04]} 29. c4 {[%emt 0:00:21]} h5 {[%emt 0:00:50]} 30. Rg1 {[%emt 0:01:15]} Kf5 {[%emt 0:04:06]} 31. d5 {[%emt 0:00:05]} Rg8 {[%emt 0:05:47]} 32. Nd4+ {[%emt 0:00:02]} Kf6 {[%emt 0:00:10]} 33. Ne6 {[%emt 0:01:25]} b5 {[%emt 0:01:51]} 34. Bd4+ {[%emt 0:00:47]} Ke7 {[%emt 0:01:10]} 35. Bc5+ {[%emt 0:00:10]} Rxc5 {[%emt 0:01:15]} 36. Nxc5 {[%emt 0:00:02]} bxc4 {[%emt 0:00:11]} 37. bxc4 {[%emt 0:00:40]} Rc8 {[%emt 0:01:42]} 38. Re1+ {[%emt 0:01:17]} Kf7 {[%emt 0:00:56]} 39. Kc3 {[%emt 0:00:31]} a5 {[%emt 0:00:08]} *

[Event "FIDE WYCC Girls U18 2023"]
[Site "Montesilvano"]
[Date "2023.11.18"]
[Round "6.18"]
[White "Sipos, Stefania"]
[Black "Gasimova, Samra"]
[Result "*"]
[ECO "C00"]
[WhiteElo "1932"]
[BlackElo "1860"]
[Annotator "NA"]
[PlyCount "46"]
[EventDate "2023.11.13"]
[EventType "swiss"]
[EventCountry "ITA"]
[SourceTitle "playchess.com"]
[Source "ChessBase"]
[SourceQuality "1"]
[TimeControl "40/5400+30:1800+30"]

1. e4 {[%emt 0:00:02]} e6 {[%emt 0:00:09]} 2. d4 {[%emt 0:00:05]} d5 {[%emt 0:00:03]} 3. Nc3 {[%emt 0:00:06]} Be7 {[%emt 0:00:36]} 4. e5 {[%emt 0:00:23]} c5 {[%emt 0:00:13]} 5. Qg4 {[%emt 0:00:21]} g5 {[%emt 0:00:10]} 6. h4 {[%emt 0:00:23]} h5 {[%emt 0:03:17]} 7. Qg3 {[%emt 0:00:31]} g4 {[%emt 0:01:20]} 8. dxc5 {[%emt 0:01:50]} Bxc5 {[%emt 0:04:12]} 9. Bd3 {[%emt 0:02:08]} Nc6 {[%emt 0:01:47]} 10. Nge2 {[%emt 0:01:11]} Bd7 {[%emt 0:03:04]} 11. O-O {[%emt 0:10:18]} Be7 {[%emt 0:11:49]} 12. Nb5 {[%emt 0:04:09]} Bxh4 {[%emt 0:19:47]} 13. Nd6+ {[%emt 0:02:00]} Kf8 {[%emt 0:00:12]} 14. Qf4 {[%emt 0:02:04]} f6 {[%emt 0:02:24]} 15. Nxb7 {[%emt 0:31:40]} Qb6 {[%emt 0:11:03]} 16. Qh2 {[%emt 0:05:38]} Nxe5 {[%emt 0:16:43]} 17. Qxh4 {[%emt 0:00:50]} Qxb7 {[%emt 0:07:31]} 18. Nf4 {[%emt 0:11:07]} Ke7 {[%emt 0:08:05]} 19. Re1 {[%emt 0:05:29]} Kd6 {[%emt 0:00:59]} 20. b3 {[%emt 0:03:21]} Qb4 {[%emt 0:01:56]} 21. c3 {[%emt 0:02:46]} Qa5 {[%emt 0:01:03]} 22. Bb2 {[%emt 0:01:41]} Nxd3 {[%emt 0:02:17]} 23. Nxd3 {[%emt 0:00:08]} e5 {[%emt 0:02:03]} *

[Event "FIDE WYCC Girls U18 2023"]
[Site "Montesilvano"]
[Date "2023.11.18"]
[Round "6.19"]
[White "Striskova, Lucia"]
[Black "Belattar, Ines"]
[Result "1-0"]
[ECO "B01"]
[WhiteElo "2039"]
[BlackElo "1623"]
[Annotator "NA"]
[PlyCount "63"]
[EventDate "2023.11.13"]
[EventType "swiss"]
[EventCountry "ITA"]
[SourceTitle "playchess.com"]
[Source "ChessBase"]
[SourceQuality "1"]
[TimeControl "40/5400+30:1800+30"]

1. e4 {[%emt 0:00:04]} d5 {[%emt 0:01:23]} 2. exd5 {[%emt 0:00:13]} Nf6 {[%emt 0:00:10]} 3. d4 {[%emt 0:00:31]} Nxd5 {[%emt 0:00:05]} 4. c4 {[%emt 0:00:28]} Nb6 {[%emt 0:00:08]} 5. Nf3 {[%emt 0:00:20]} g6 {[%emt 0:01:05]} 6. Nc3 {[%emt 0:00:16]} Bg7 {[%emt 0:00:07]} 7. c5 {[%emt 0:01:09]} Nd5 {[%emt 0:00:13]} 8. Bc4 {[%emt 0:00:21]} c6 {[%emt 0:03:37]} 9. Qb3 {[%emt 0:02:18]} O-O {[%emt 0:08:06]} 10. O-O {[%emt 0:03:04]} Nxc3 {[%emt 0:05:15]} 11. bxc3 {[%emt 0:00:07]} Bg4 {[%emt 0:01:52]} 12. Ng5 {[%emt 0:05:13]} e6 {[%emt 0:05:06]} 13. f3 {[%emt 0:03:21]} Bf5 {[%emt 0:05:24]} 14. g4 {[%emt 0:03:30]} Bd3 {[%emt 0:09:58]} 15. Bxd3 {[%emt 0:01:33]} Bxd4+ {[%emt 0:02:49]} 16. cxd4 {[%emt 0:00:15]} Qxd4+ {[%emt 0:00:20]} 17. Kg2 {[%emt 0:00:26]} Rd8 {[%emt 0:01:19]} 18. Be2 {[%emt 0:02:10]} Na6 {[%emt 0:02:11]} 19. Be3 {[%emt 0:03:33]} Nxc5 {[%emt 0:01:13]} 20. Bxd4 {[%emt 0:00:22]} Nxb3 {[%emt 0:00:07]} 21. axb3 {[%emt 0:00:11]} Rxd4 {[%emt 0:00:05]} 22. Rfd1 {[%emt 0:00:13]} Rd5 {[%emt 0:00:39]} 23. Ne4 {[%emt 0:00:29]} Kg7 {[%emt 0:02:35]} 24. Bc4 {[%emt 0:01:47]} Rxd1 {[%emt 0:00:56]} 25. Rxd1 {[%emt 0:00:08]} b5 {[%emt 0:00:09]} 26. Be2 {[%emt 0:00:10]} a5 {[%emt 0:00:59]} 27. Rc1 {[%emt 0:00:56]} Ra6 {[%emt 0:05:07]} 28. Nc5 {[%emt 0:01:32]} Ra7 {[%emt 0:00:41]} 29. Ra1 {[%emt 0:00:14]} Kf6 {[%emt 0:00:51]} 30. Kf2 {[%emt 0:00:25]} Ke5 {[%emt 0:00:18]} 31. Ke3 {[%emt 0:00:19]} Kd5 {[%emt 0:00:45]} 32. Ne4 {[%emt 0:00:49]} 1-0

[Event "FIDE WYCC Girls U18 2023"]
[Site "Montesilvano"]
[Date "2023.11.18"]
[Round "6.20"]
[White "Hyatt, Jessica"]
[Black "Obada, Ema"]
[Result "0-1"]
[ECO "A61"]
[WhiteElo "1818"]
[BlackElo "2023"]
[Annotator "NA"]
[PlyCount "124"]
[EventDate "2023.11.13"]
[EventType "swiss"]
[EventCountry "ITA"]
[SourceTitle "playchess.com"]
[Source "ChessBase"]
[SourceQuality "1"]
[TimeControl "40/5400+30:1800+30"]

1. d4 {[%emt 0:00:02]} Nf6 {[%emt 0:00:09]} 2. c4 {[%emt 0:00:05]} e6 {[%emt 0:00:06]} 3. Nf3 {[%emt 0:00:12]} c5 {[%emt 0:00:10]} 4. d5 d6 {[%emt 0:00:08]} 5. Nc3 {[%emt 0:00:11]} exd5 {[%emt 0:00:05]} 6. cxd5 {[%emt 0:00:03]} g6 {[%emt 0:00:06]} 7. e4 {[%emt 0:00:14]} a6 {[%emt 0:00:36]} 8. a4 {[%emt 0:00:21]} Bg4 {[%emt 0:00:20]} 9. h3 {[%emt 0:00:19]} Bxf3 {[%emt 0:00:14]} 10. Qxf3 {[%emt 0:00:10]} Bg7 {[%emt 0:01:14]} 11. Bd3 {[%emt 0:00:17]} O-O {[%emt 0:01:48]} 12. O-O {[%emt 0:00:36]} Nbd7 {[%emt 0:06:15]} 13. Qg3 {[%emt 0:02:09]} Nh5 {[%emt 0:18:59]} 14. Qh2 {[%emt 0:02:13]} Be5 {[%emt 0:10:03]} 15. f4 {[%emt 0:04:55]} Bd4+ {[%emt 0:00:06]} 16. Kh1 {[%emt 0:00:01]} Ng7 {[%emt 0:18:10]} 17. Ne2 {[%emt 0:02:16]} f5 {[%emt 0:05:29]} 18. Nxd4 {[%emt 0:02:11]} cxd4 {[%emt 0:00:22]} 19. e5 {[%emt 0:09:43]} Nb6 {[%emt 0:13:06]} 20. exd6 {[%emt 0:08:02]} Qxd6 {[%emt 0:02:45]} 21. b3 {[%emt 0:00:42]} Nxd5 {[%emt 0:01:27]} 22. Bc4 {[%emt 0:00:45]} Rfe8 {[%emt 0:03:15]} 23. Qg1 {[%emt 0:03:41]} Ne6 {[%emt 0:00:17]} 24. Ba3 {[%emt 0:00:50]} Qd7 {[%emt 0:00:23]} 25. a5 {[%emt 0:02:23]} Ne3 {[%emt 0:02:04]} 26. Rf3 {[%emt 0:04:24]} Nxc4 {[%emt 0:00:43]} 27. bxc4 {[%emt 0:00:01]} Rac8 {[%emt 0:00:14]} 28. g4 {[%emt 0:03:16]} Ng7 {[%emt 0:00:53]} 29. c5 {[%emt 0:00:39]} Re2 {[%emt 0:01:14]} 30. Rd1 {[%emt 0:05:26]} Qd5 {[%emt 0:00:34]} 31. Rdd3 {[%emt 0:01:08]} Ne6 {[%emt 0:01:29]} 32. gxf5 {[%emt 0:02:44]} Qxf5 {[%emt 0:00:51]} 33. Qg4 {[%emt 0:02:03]} Rf8 {[%emt 0:02:56]} 34. c6 {[%emt 0:03:13]} Qb5 {[%emt 0:04:14]} 35. Rd1 {[%emt 0:15:36]} Rf5 {[%emt 0:01:18]} 36. Kg1 {[%emt 0:05:28]} bxc6 {[%emt 0:00:59]} 37. Rfd3 {[%emt 0:04:21]} Re4 {[%emt 0:00:23]} 38. Bd6 {[%emt 0:02:59]} Qd5 {[%emt 0:00:14]} 39. Rg3 {[%emt 0:01:13]} Nxf4 {[%emt 0:01:14]} 40. Bxf4 {[%emt 0:00:00]} Rexf4 {[%emt 0:00:00]} 41. Qe2 {[%emt 0:00:53]} c5 {[%emt 0:09:32]} 42. Qxa6 {[%emt 0:01:08]} Qa2 {[%emt 0:01:14]} 43. Rg2 {[%emt 0:02:19]} Qd5 {[%emt 0:06:25]} 44. Qb6 {[%emt 0:07:52]} Rf6 {[%emt 0:01:20]} 45. Qb5 {[%emt 0:01:57]} Qh5 {[%emt 0:07:09]} 46. Qb3+ {[%emt 0:05:18]} Kg7 {[%emt 0:00:13]} 47. Re1 {[%emt 0:00:27]} Rf7 {[%emt 0:02:50]} 48. Qe6 {[%emt 0:14:45]} R4f5 {[%emt 0:00:54]} 49. Kh2 {[%emt 0:06:17]} Qh4 {[%emt 0:00:36]} 50. a6 {[%emt 0:00:58]} Qf4+ {[%emt 0:00:28]} 51. Kh1 {[%emt 0:02:13]} d3 {[%emt 0:00:58]} 52. Qb3 c4 {[%emt 0:01:37]} 53. Qc3+ {[%emt 0:02:49]} R5f6 {[%emt 0:00:49]} 54. Reg1 {[%emt 0:01:22]} Qe4 {[%emt 0:00:42]} 55. Rf1 {[%emt 0:01:39]} Qe6 {[%emt 0:01:34]} 56. Kh2 {[%emt 0:02:16]} Qxa6 {[%emt 0:00:27]} 57. Rg4 {[%emt 0:00:19]} Kf8 {[%emt 0:04:54]} 58. Rxf6 Rxf6 {[%emt 0:01:35]} 59. Rxc4 {[%emt 0:01:20]} Qa2+ {[%emt 0:00:18]} 60. Kg3 {[%emt 0:00:43]} Qf2+ {[%emt 0:00:05]} 61. Kg4 {[%emt 0:00:05]} Qf3+ {[%emt 0:00:30]} 62. Kg5 {[%emt 0:00:37]} Rf5+ {[%emt 0:00:09]} 0-1

[Event "FIDE WYCC Girls U18 2023"]
[Site "Montesilvano"]
[Date "2023.11.18"]
[Round "6.21"]
[White "Keerti Shree Reddy"]
[Black "Skarbarchuk, Tetyana"]
[Result "*"]
[WhiteElo "1741"]
[BlackElo "2010"]
[Annotator "NA"]
[PlyCount "47"]
[EventDate "2023.11.13"]
[EventType "swiss"]
[EventCountry "ITA"]
[SourceTitle "playchess.com"]
[Source "ChessBase"]
[SourceQuality "1"]
[TimeControl "40/5400+30:1800+30"]

1. e4 {[%emt 0:02:48]} e6 {[%emt 0:00:09]} 2. b3 {[%emt 0:00:05]} d5 {[%emt 0:00:15]} 3. Bb2 {[%emt 0:00:21]} Nc6 {[%emt 0:00:21]} 4. exd5 {[%emt 0:01:54]} exd5 {[%emt 0:00:13]} 5. Bb5 {[%emt 0:01:08]} Nf6 {[%emt 0:09:36]} 6. h3 Bd6 {[%emt 0:02:59]} 7. Qf3 {[%emt 0:11:34]} O-O {[%emt 0:04:25]} 8. Bxc6 {[%emt 0:04:33]} bxc6 {[%emt 0:00:14]} 9. Ne2 {[%emt 0:02:21]} Re8 {[%emt 0:20:28]} 10. O-O {[%emt 0:04:45]} c5 {[%emt 0:06:17]} 11. d3 {[%emt 0:09:32]} Rb8 {[%emt 0:11:09]} 12. Nd2 {[%emt 0:04:29]} Bb7 {[%emt 0:02:02]} 13. Ng3 {[%emt 0:05:11]} d4 {[%emt 0:03:26]} 14. Nge4 {[%emt 0:02:10]} Nxe4 {[%emt 0:00:14]} 15. dxe4 {[%emt 0:09:47]} Qg5 {[%emt 0:03:26]} 16. Qd3 {[%emt 0:03:48]} f5 {[%emt 0:07:25]} 17. Bc1 {[%emt 0:07:07]} Qg6 {[%emt 0:01:24]} 18. f3 {[%emt 0:06:07]} Qg3 {[%emt 0:01:54]} 19. f4 {[%emt 0:06:40]} Qg6 {[%emt 0:00:56]} 20. Qc4+ {[%emt 0:02:25]} Kh8 {[%emt 0:00:53]} 21. Nf3 {[%emt 0:00:57]} fxe4 {[%emt 0:04:43]} 22. Ng5 {[%emt 0:02:52]} Re7 {[%emt 0:01:53]} 23. f5 {[%emt 0:00:44]} Qf6 {[%emt 0:00:13]} 24. b4 {[%emt 0:08:59]} *